bitfinex/quotes_ETHUSD_20251118
["timestamp","ask_amount","ask_price","bid_price","bid_amount"]
[1763465476710,0.278,3069.2,3068.6,0.001]
[1763465477265,0.405504,3069.1,3068.6,0.001]
[1763465477492,0.455,3069.0,3068.6,0.001]
[1763465477901,0.405504,3069.1,3068.6,0.001]
[1763465478084,0.886704,3068.7,3068.6,0.001]
[1763465478294,1.163704,3068.7,3068.6,0.001]
[1763465478463,3.17401024,3068.7,3068.6,0.001]
[1763465478975,3.47737139,3068.7,3068.6,0.001]
[1763465480268,2.16617875,3068.7,3068.6,0.001]
[1763465480507,1.46706515,3068.7,3068.6,0.001]
[1763465480703,0.70886515,3068.7,3068.6,0.001]
[1763465481003,0.277,3068.7,3068.6,0.001]
[1763465482215,0.7432,3068.7,3068.6,0.001]
[1763465482412,1.87136278,3068.7,3068.6,0.001]
[1763465482572,2.9851917,3068.7,3068.6,0.001]
[1763465482766,3.68456796,3068.7,3068.6,0.001]
[1763465483290,0.405504,3068.6,3068.3,0.001]
[1763465483498,9.55987906,3068.4,3068.3,0.001]
[1763465483675,11.43445291,3068.4,3068.3,0.001]
[1763465483875,11.93265291,3068.4,3068.3,0.001]
[1763465484771,1.31249664,3068.3,3068.0,0.001]
[1763465484990,1.69649664,3068.1,3068.0,0.001]
[1763465485175,2.69943168,3068.1,3068.0,0.001]
[1763465485390,3.63263147,3068.1,3068.0,0.001]
[1763465486924,3.63281348,3068.1,3068.0,0.001]
[1763465487882,3.91081348,3068.1,3068.0,0.001]
[1763465488083,6.02881348,3068.1,3068.0,0.001]
[1763465490613,6.02801348,3068.1,3068.0,0.001]
[1763465491510,0.405504,3068.0,3067.6,0.001]
[1763465491695,9.94227906,3067.7,3067.6,0.001]
[1763465491900,11.22339611,3067.7,3067.6,0.001]
[1763465492198,11.72049611,3067.7,3067.6,0.001]
[1763465493121,3.47731369,3067.7,3067.6,0.001]
[1763465493319,12.15561516,3067.7,3067.6,0.001]
[1763465495003,11.65851516,3067.7,3067.6,0.001]
[1763465495630,12.15561516,3067.7,3067.6,0.001]
[1763465495974,2.75073274,3067.7,3067.6,0.001]
[1763465496180,2.75073274,3067.7,3067.6,0.9344]
[1763465496181,0.30355878,3067.7,3067.6,0.9344]
[1763465496377,0.278,3067.7,3067.6,0.4574]
[1763465496822,0.278,3067.7,3067.6,0.001]
[1763465497182,0.278,3067.7,3067.6,0.4574]
[1763465498015,0.683504,3067.7,3067.6,0.001]
[1763465498195,3.89784933,3067.7,3067.6,0.001]
[1763465498579,3.70849664,3067.7,3067.6,0.001]
[1763465499608,3.04519664,3067.7,3067.6,0.001]
[1763465500018,2.64949664,3067.7,3067.6,0.001]
[1763465500326,2.64949664,3067.7,3067.6,0.4574]
[1763465500883,2.64949664,3067.7,3067.6,0.001]
[1763465501436,3.04219044,3067.7,3067.6,0.001]
[1763465501743,1.88049044,3067.7,3067.6,0.4574]
[1763465501898,1.89354078,3067.7,3067.6,0.4574]
[1763465502398,1.89354078,3067.7,3067.6,0.001]
[1763465502901,1.89354078,3067.7,3067.6,0.4574]
[1763465503203,1.89354078,3067.7,3067.6,0.9344]
[1763465503401,1.89354078,3067.7,3067.6,0.4574]
[1763465504340,1.89354078,3067.7,3067.6,0.001]
[1763465505850,2.28924078,3067.7,3067.6,0.001]
[1763465506367,2.59388421,3067.7,3067.6,0.001]
[1763465506537,1.89354078,3067.7,3067.6,0.001]
[1763465506736,1.89354078,3067.7,3067.6,0.4574]
[1763465506940,1.89354078,3067.7,3067.6,0.001]
[1763465507658,2.99012075,3067.7,3067.6,0.001]
[1763465507869,3.28913283,3067.7,3067.6,0.001]
[1763465508071,5.89513283,3067.7,3067.6,0.001]
[1763465508280,4.83613283,3067.7,3067.6,0.001]
[1763465508563,4.65300967,3067.7,3067.6,0.001]
[1763465509045,3.77913283,3067.7,3067.6,0.001]
[1763465509246,1.31249664,3067.6,3067.5,0.001]
[1763465509450,2.81032075,3067.6,3067.5,0.001]
[1763465509626,3.65192033,3067.6,3067.4,0.001]
[1763465509832,1.31249664,3067.4,3067.3,0.001]
[1763465510028,10.56830317,3067.4,3067.2,0.001]
[1763465510233,4.63880701,3067.3,3067.2,0.001]
[1763465511061,3.47042075,3067.3,3067.2,0.001]
[1763465511261,5.21901297,3067.3,3067.2,0.001]
[1763465512861,5.22331717,3067.3,3067.2,0.001]
[1763465513565,3.47042075,3067.3,3067.2,0.001]
[1763465513961,3.46962075,3067.3,3067.2,0.001]
[1763465514264,5.22222173,3067.3,3067.2,0.001]
[1763465514464,2.98062075,3067.3,3067.2,0.001]
[1763465514630,2.98062075,3067.3,3067.2,0.4574]
[1763465514631,3.35696403,3067.3,3067.2,0.4574]
[1763465514830,3.47045755,3067.3,3067.2,0.4574]
[1763465515034,3.47045755,3067.3,3067.2,0.001]
[1763465515264,1.89354078,3067.3,3067.2,0.001]
[1763465515440,2.76951179,3067.3,3067.2,0.001]
[1763465515647,3.4702886,3067.3,3067.2,0.001]
[1763465515966,3.93412219,3067.3,3067.2,0.001]
[1763465517068,4.81622219,3067.3,3067.2,0.001]
[1763465517241,3.94025118,3067.3,3067.2,0.001]
[1763465517566,3.45225118,3067.3,3067.2,0.001]
[1763465517767,3.470456,3067.3,3067.2,0.001]
[1763465518177,5.588456,3067.3,3067.2,0.001]
[1763465519579,1.00382095,3067.3,3067.2,0.9344]
[1763465519775,0.58104414,3067.3,3067.2,0.9344]
[1763465520949,0.58231144,3067.3,3067.2,0.9344]
[1763465521845,0.98781544,3067.3,3067.2,0.9344]
[1763465522946,0.58231144,3067.3,3067.2,0.9344]
[1763465523341,0.98781544,3067.3,3067.2,0.001]
[1763465523581,1.38191544,3067.3,3067.2,0.001]
[1763465523744,1.6809133,3067.3,3067.2,0.001]
[1763465523947,1.38191544,3067.3,3067.2,0.001]
[1763465524150,2.08298592,3067.3,3067.2,0.001]
[1763465524477,2.57098592,3067.3,3067.2,0.001]
[1763465524678,4.35411697,3067.3,3067.2,0.001]
[1763465524881,3.47201697,3067.3,3067.2,0.9344]
[1763465525194,1.00538192,3067.3,3067.2,0.9344]
[1763465525348,0.58231144,3067.3,3067.2,0.9344]
[1763465525762,0.58231144,3067.3,3067.2,0.4574]
[1763465526047,0.58231144,3067.3,3067.2,0.9423]
[1763465526489,0.5823326,3067.3,3067.2,0.9423]
[1763465528111,2.7003326,3067.3,3067.2,0.9423]
[1763465528525,0.3043326,3067.3,3067.2,0.9423]
[1763465528700,1.337,3067.3,3067.2,0.9423]
[1763465528899,1.6413326,3067.3,3067.2,0.9423]
[1763465529997,1.6433326,3067.3,3067.2,0.9423]
[1763465530397,1.339,3067.3,3067.2,0.9423]
[1763465531642,0.002,3067.3,3067.2,0.9423]
[1763465531838,1.339,3067.3,3067.2,0.9423]
[1763465534046,0.002,3067.3,3067.2,0.9423]
[1763465534238,1.059,3067.3,3067.2,0.9423]
[1763465534439,1.337,3067.3,3067.2,0.9423]
[1763465534633,1.059,3067.3,3067.2,0.9423]
[1763465535017,0.002,3067.7,3067.2,0.9423]
[1763465535214,0.002,3067.7,3067.6,0.4871]
[1763465535541,0.002,3067.7,3067.6,1.13966202]
[1763465535745,0.28,3067.7,3067.6,0.972]
[1763465537452,0.2792,3067.7,3067.6,0.972]
[1763465538153,1.3382,3067.7,3067.6,0.972]
[1763465538772,0.405504,3067.6,3067.2,0.001]
[1763465539054,0.0048,3067.3,3067.2,0.001]
[1763465539218,0.99249072,3067.3,3067.2,0.001]
[1763465539421,1.47649072,3067.3,3067.2,0.001]
[1763465539616,2.17718423,3067.3,3067.2,0.001]
[1763465539834,2.48560192,3067.3,3067.2,0.001]
[1763465540037,1.30090841,3067.3,3067.2,0.001]
[1763465540237,2.00159926,3067.3,3067.2,0.001]
[1763465540622,1.72359926,3067.3,3067.2,0.001]
[1763465540924,2.00159926,3067.3,3067.2,0.001]
[1763465541552,1.99679926,3067.3,3067.2,0.001]
[1763465542046,3.7859919,3067.3,3067.2,0.001]
[1763465543037,2.9037919,3067.3,3067.2,0.001]
[1763465543235,3.7859919,3067.3,3067.2,0.001]
[1763465543837,3.3096919,3067.3,3067.2,0.001]
[1763465544235,3.7874919,3067.3,3067.2,0.001]
[1763465545054,1.31249664,3067.2,3067.1,0.001]
[1763465545229,3.82877779,3067.2,3067.1,0.001]
[1763465547172,4.99682507,3067.2,3067.1,0.001]
[1763465548084,7.11482507,3067.2,3067.1,0.001]
[1763465548288,3.82877779,3067.2,3067.1,0.001]
[1763465548433,6.22477779,3067.2,3067.1,0.001]
[1763465548638,3.82877779,3067.2,3067.1,0.001]
[1763465548976,4.10677779,3067.2,3067.1,0.001]
[1763465549276,2.63913214,3067.2,3067.1,0.4948]
[1763465549468,0.30418672,3067.2,3067.1,1.0696]
[1763465549770,0.278,3067.2,3067.1,0.6142]
[1763465549975,0.278,3067.2,3067.1,0.001]
[1763465550545,0.278,3067.2,3067.1,0.9502]
[1763465550546,0.30418672,3067.2,3067.1,0.9502]
[1763465550745,0.278,3067.2,3067.1,0.9502]
[1763465550944,0.58218672,3067.2,3067.1,0.4948]
[1763465551142,0.30418672,3067.2,3067.1,0.001]
[1763465551367,0.278,3067.2,3067.1,0.001]
[1763465551568,1.39472455,3067.2,3067.1,0.001]
[1763465551733,2.05900701,3067.2,3067.1,0.001]
[1763465551939,3.66739968,3067.2,3067.1,0.001]
[1763465553380,4.54398225,3067.2,3067.1,0.001]
[1763465554267,3.66739968,3067.2,3067.1,0.001]
[1763465554642,1.31249664,3067.1,3066.9,0.001]
[1763465554849,12.49936443,3067.1,3066.9,0.001]
[1763465557460,13.66727716,3067.1,3066.9,0.001]
[1763465557653,14.38285524,3067.1,3066.9,0.001]
[1763465557882,14.38255042,3067.1,3066.9,0.001]
[1763465558069,16.50255042,3067.1,3066.9,0.001]
[1763465558387,12.62994944,3067.1,3066.9,0.001]
[1763465558591,14.74976156,3067.1,3066.9,0.001]
[1763465558761,2.37933767,3067.0,3066.9,0.001]
[1763465558962,3.70563031,3067.0,3066.9,0.001]
[1763465560004,3.70563031,3067.0,3066.7,0.001]
[1763465560005,1.31249664,3066.9,3066.7,0.001]
[1763465560187,1.05351973,3066.8,3066.7,0.001]
[1763465560384,2.21881976,3066.8,3066.7,0.001]
[1763465560560,3.79906213,3066.8,3066.7,0.001]
[1763465561055,3.92916181,3066.8,3066.7,0.001]
[1763465562783,4.20716181,3066.8,3066.7,0.001]
[1763465563292,5.37442763,3066.8,3066.7,0.001]
[1763465563663,4.20716181,3066.8,3066.7,0.001]
[1763465564297,3.92916181,3066.8,3066.7,0.001]
[1763465564689,4.6178804,3066.8,3066.7,0.001]
[1763465565201,4.20716181,3066.8,3066.7,0.001]
[1763465565364,3.92916181,3066.8,3066.7,0.001]
[1763465565699,4.20716181,3066.8,3066.7,0.001]
[1763465567364,5.37442763,3066.8,3066.7,0.001]
[1763465567575,1.31249664,3066.7,3066.5,0.001]
[1763465567782,1.61472194,3066.7,3066.5,0.001]
[1763465567980,2.07982194,3066.7,3066.5,0.001]
[1763465568180,5.10681458,3066.7,3066.5,0.001]
[1763465568420,6.27421908,3066.7,3066.5,0.001]
[1763465568713,5.21421908,3066.7,3066.5,0.001]
[1763465569678,4.15421908,3066.7,3066.5,0.001]
[1763465571018,4.43221908,3066.7,3066.5,0.001]
[1763465573015,4.73656261,3066.7,3066.5,0.001]
[1763465573211,4.86746529,3066.7,3066.5,0.001]
[1763465573412,3.70006079,3066.7,3066.5,0.001]
[1763465574914,1.31249664,3066.6,3066.5,0.001]
[1763465575127,0.405504,3066.3,3066.0,0.001]
[1763465575289,0.4685,3066.4,3066.0,0.001]
[1763465575290,9.90469596,3066.1,3066.0,0.001]
[1763465575496,10.91043952,3066.1,3066.0,0.001]
[1763465575819,10.56983952,3066.1,3066.0,0.4552]
[1763465576025,11.07305743,3066.1,3066.0,0.4552]
[1763465576233,11.26825743,3066.1,3066.0,0.4552]
[1763465576437,11.61215743,3066.1,3066.0,0.001]
[1763465576602,11.26825743,3066.1,3066.0,0.001]
[1763465576804,11.61215743,3066.1,3066.0,0.001]
[1763465577409,12.48882958,3066.1,3066.0,0.001]
[1763465577917,11.61215743,3066.1,3066.0,0.001]
[1763465578230,13.73215743,3066.1,3066.0,0.001]
[1763465578438,13.38825743,3066.1,3066.0,0.4552]
[1763465578622,14.54268951,3066.1,3066.0,0.4552]
[1763465579196,12.42268951,3066.1,3066.0,0.4552]
[1763465579400,12.03315743,3066.1,3066.0,0.001]
[1763465580130,12.35545743,3066.1,3066.0,0.001]
[1763465580629,13.52435364,3066.1,3066.0,0.001]
[1763465580929,12.35545743,3066.1,3065.0,0.185]
[1763465581146,0.405504,3065.7,3065.3,0.4984]
[1763465581299,0.405504,3065.5,3065.3,0.4984]
[1763465581499,0.98784753,3065.4,3065.3,0.4984]
[1763465582004,0.30434353,3065.4,3065.3,0.9526]
[1763465582224,0.58234353,3065.4,3065.3,0.9526]
[1763465583870,0.58234353,3065.4,3065.3,0.9536]
[1763465583871,0.98784753,3065.4,3065.3,0.9536]
[1763465584336,1.69020978,3065.4,3065.3,0.9536]
[1763465584531,0.98704753,3065.4,3065.3,0.9536]
[1763465585052,0.98704753,3065.4,3065.3,0.4552]
[1763465585656,0.98704753,3065.4,3065.3,0.9536]
[1763465586224,10.19762294,3065.4,3065.3,0.471]
[1763465586424,12.2752512,3065.4,3065.3,0.001]
[1763465586620,13.9831512,3065.4,3065.3,0.001]
[1763465586872,13.48907445,3065.4,3065.3,0.001]
[1763465587223,4.69927513,3065.4,3065.3,0.471]
[1763465587424,4.97727513,3065.4,3065.3,0.471]
[1763465587659,3.80661626,3065.4,3065.3,0.471]
[1763465587954,3.47421012,3065.4,3065.3,0.9452]
[1763465588155,5.59421012,3065.4,3065.3,0.9452]
[1763465588358,6.06841012,3065.4,3065.3,0.471]
[1763465588519,6.06841012,3065.4,3065.3,0.001]
[1763465588725,6.06841012,3065.4,3065.3,0.471]
[1763465589134,3.67041012,3065.4,3065.3,0.9452]
[1763465589461,4.13060242,3065.4,3065.3,0.9452]
[1763465589662,3.65640242,3065.4,3065.3,0.9452]
[1763465590241,2.59640242,3065.4,3065.3,0.9452]
[1763465590566,1.68940978,3065.4,3065.3,0.9452]
[1763465591052,0.98704753,3065.4,3065.3,0.9452]
[1763465591255,1.68940978,3065.4,3065.3,0.9452]
[1763465591425,0.98704753,3065.4,3065.3,0.9452]
[1763465591825,0.98704753,3065.4,3065.3,0.471]
[1763465592257,0.98704753,3065.4,3065.3,0.9452]
[1763465592461,0.98704753,3065.4,3065.3,0.471]
[1763465592670,1.46194753,3065.4,3065.3,0.001]
[1763465593126,0.98704753,3065.4,3065.3,0.001]
[1763465593331,0.98704753,3065.4,3065.3,0.471]
[1763465593795,0.98704753,3065.4,3065.3,0.001]
[1763465594071,1.46004753,3065.4,3065.3,0.001]
[1763465594371,2.16240978,3065.4,3065.3,0.001]
[1763465594543,1.68940978,3065.4,3065.3,0.471]
[1763465594928,0.98704753,3065.4,3065.3,0.471]
[1763465595560,1.25304753,3065.4,3065.3,0.001]
[1763465595757,2.86240242,3065.4,3065.3,0.001]
[1763465596675,3.35660242,3065.4,3065.3,0.001]
[1763465596850,17.23021879,3065.4,3065.3,0.001]
[1763465597053,0.405504,3065.3,3064.9,0.001]
[1763465597369,7.02298275,3065.0,3064.9,0.001]
[1763465597573,8.30688853,3065.0,3064.9,0.001]
[1763465598158,10.42688853,3065.0,3064.9,0.001]
[1763465598850,4.07540978,3065.0,3064.9,0.001]
[1763465599048,3.53140978,3065.0,3064.9,0.471]
[1763465599277,1.68940978,3065.0,3064.9,0.9452]
[1763465599582,1.68940978,3065.0,3064.9,0.471]
[1763465599782,1.68940978,3065.0,3064.9,0.9452]
[1763465600463,1.68940978,3065.0,3064.9,0.471]
[1763465600670,1.68940978,3065.0,3064.9,0.9313]
[1763465600893,1.41140978,3065.0,3064.9,0.9313]
[1763465601053,1.00590578,3065.0,3064.9,0.9313]
[1763465601255,0.58154353,3065.0,3064.9,0.9313]
[1763465601459,0.30354353,3065.0,3064.9,0.9313]
[1763465601650,0.30354353,3065.1,3064.9,0.9313]
[1763465601845,0.278,3065.0,3064.9,0.001]
[1763465602259,0.58154353,3065.0,3064.9,0.4841]
[1763465602477,0.58154353,3065.0,3064.9,0.9444]
[1763465602680,0.278,3065.0,3064.9,0.9444]
[1763465603281,0.58154353,3065.0,3064.9,0.9444]
[1763465603578,0.278,3065.0,3064.9,0.9444]
[1763465603780,0.30426246,3065.3,3064.9,0.9444]
[1763465603984,0.278,3065.2,3065.0,0.4603]
[1763465604385,0.278,3065.2,3064.9,0.001]
[1763465604581,0.70976646,3065.1,3064.9,0.4613]
[1763465604882,0.70976646,3065.0,3064.9,0.4613]
[1763465605283,0.405504,3065.0,3064.9,0.4841]
[1763465605478,0.70976646,3065.0,3064.9,0.9444]
[1763465606492,0.98776646,3065.0,3064.9,0.9444]
[1763465608179,3.10696646,3065.0,3064.9,0.9444]
[1763465608824,3.80855354,3065.0,3064.9,0.9444]
[1763465609113,3.10696646,3065.0,3064.9,0.9444]
[1763465609814,2.04696646,3065.0,3064.9,0.9444]
[1763465610027,2.04696646,3065.0,3064.9,0.4841]
[1763465610366,1.68868619,3065.0,3064.9,0.4841]
[1763465610571,1.68867319,3065.0,3064.9,0.4841]
[1763465610784,1.15583378,3065.0,3064.9,0.4841]
[1763465611202,1.15583378,3065.0,3064.9,0.001]
[1763465611398,1.45883378,3065.0,3064.9,0.001]
[1763465611814,2.16054051,3065.0,3064.9,0.001]
[1763465611970,1.85754051,3065.0,3064.9,0.001]
[1763465612176,1.15583378,3065.0,3064.9,0.4841]
[1763465612369,0.98696646,3065.0,3064.9,0.4841]
[1763465614013,0.98696646,3065.0,3064.9,0.001]
[1763465614188,1.28996646,3065.0,3064.9,0.001]
[1763465614606,1.99167319,3065.0,3064.9,0.001]
[1763465615705,1.68867319,3065.0,3064.9,0.001]
[1763465615907,1.99317319,3065.0,3064.9,0.001]
[1763465616106,2.50734708,3065.0,3064.9,0.001]
[1763465616305,2.96334708,3065.0,3064.9,0.001]
[1763465616519,3.87033972,3065.0,3064.9,0.001]
[1763465616727,1.31249664,3064.9,3064.6,0.001]
[1763465617036,0.683304,3064.7,3064.6,0.001]
[1763465617326,2.07376694,3064.7,3064.6,0.001]
[1763465617698,2.35156694,3064.7,3064.6,0.001]
[1763465618216,4.47156694,3064.7,3064.6,0.001]
[1763465619424,3.41156694,3064.7,3064.6,0.001]
[1763465619917,2.83166694,3064.7,3064.6,0.001]
[1763465620121,1.28396919,3064.7,3064.6,0.4594]
[1763465620327,0.98776646,3064.7,3064.6,0.4594]
[1763465620716,0.58226246,3064.7,3064.6,0.9369]
[1763465620911,1.68947319,3064.7,3064.6,0.9369]
[1763465621113,1.00596919,3064.7,3064.6,0.9369]
[1763465621325,0.30426246,3064.7,3064.6,0.9369]
[1763465621502,0.278,3064.7,3064.6,0.9369]
[1763465622724,0.30659513,3065.0,3064.6,0.9369]
[1763465622931,0.278,3064.7,3064.6,0.001]
[1763465623227,0.002,3065.0,3064.9,0.4584]
[1763465623528,0.58459513,3065.0,3064.9,0.4584]
[1763465623709,0.28,3065.0,3064.9,0.9359]
[1763465623896,0.58459513,3065.0,3064.9,0.9359]
[1763465624525,0.28,3065.0,3064.9,0.9359]
[1763465624725,0.30659513,3065.0,3064.9,0.9359]
[1763465624915,0.28,3065.0,3064.9,0.9359]
[1763465625097,0.58459377,3065.0,3064.9,0.9359]
[1763465625299,0.28,3065.0,3064.9,0.9359]
[1763465625603,0.58459377,3065.0,3064.9,0.9359]
[1763465625925,0.58459377,3065.0,3064.9,0.4584]
[1763465626126,0.58459377,3065.0,3064.6,0.001]
[1763465626127,0.86239377,3065.0,3064.6,0.001]
[1763465626296,0.71009777,3064.9,3064.6,0.001]
[1763465626498,0.30459377,3064.8,3064.6,0.001]
[1763465626697,0.30459377,3064.7,3064.6,0.001]
[1763465626928,0.30459609,3064.8,3064.6,0.001]
[1763465627106,0.30459609,3064.7,3064.6,0.4594]
[1763465627306,0.405504,3064.9,3064.6,0.4594]
[1763465627307,0.30459609,3064.8,3064.6,0.4594]
[1763465627508,0.71010009,3064.7,3064.6,0.4594]
[1763465627713,0.79200009,3064.7,3064.6,0.001]
[1763465627910,1.27420009,3064.7,3064.6,0.001]
[1763465628121,5.00297938,3064.7,3064.6,0.001]
[1763465629132,4.52077938,3064.7,3064.6,0.001]
[1763465629455,2.40077938,3064.7,3064.6,0.001]
[1763465629612,2.67777938,3064.7,3064.6,0.001]
[1763465631424,3.15997938,3064.7,3064.6,0.001]
[1763465631621,3.15917938,3064.7,3064.6,0.001]
[1763465631835,2.88217938,3064.7,3064.6,0.001]
[1763465632034,3.15917938,3064.7,3064.6,0.001]
[1763465634244,2.67697938,3064.7,3064.6,0.001]
[1763465635052,3.15917938,3064.7,3064.6,0.001]
[1763465635214,2.67697938,3064.7,3064.6,0.001]
[1763465635750,2.39997938,3064.7,3064.6,0.001]
[1763465635923,2.67697938,3064.7,3064.6,0.001]
[1763465636649,2.39997938,3064.7,3064.6,0.001]
[1763465636852,2.67697938,3064.7,3064.6,0.001]
[1763465637060,2.31807938,3064.7,3064.6,0.4594]
[1763465637421,2.59507938,3064.7,3064.6,0.9369]
[1763465637954,3.61248732,3064.7,3064.6,0.001]
[1763465638124,4.19238732,3064.7,3064.6,0.001]
[1763465638653,3.65507938,3064.7,3064.6,0.4594]
[1763465638949,2.59507938,3064.7,3064.6,0.4594]
[1763465639116,2.31807938,3064.7,3064.6,0.4594]
[1763465639319,2.59507938,3064.7,3064.6,0.4594]
[1763465639518,2.31807938,3064.7,3064.6,0.9369]
[1763465639721,2.59507938,3064.7,3064.6,0.9369]
[1763465640128,2.31807938,3064.7,3064.6,0.9369]
[1763465640354,2.59507938,3064.7,3064.6,0.4594]
[1763465640754,2.59557333,3064.7,3064.6,0.4594]
[1763465641550,2.59757333,3064.7,3064.6,0.9369]
[1763465641738,2.32057333,3064.7,3064.6,0.4594]
[1763465641940,2.59757333,3064.7,3064.6,0.9369]
[1763465642140,1.28587669,3064.7,3064.6,0.9369]
[1763465642453,0.58409004,3064.7,3064.6,0.9369]
[1763465642651,0.98959404,3064.7,3064.6,0.4594]
[1763465644546,2.04959404,3064.7,3064.6,0.4594]
[1763465644856,3.10959404,3064.7,3064.6,0.4594]
[1763465645054,2.804504,3064.7,3064.6,0.4594]
[1763465645255,4.09027025,3064.7,3064.6,0.001]
[1763465645455,3.78514625,3064.7,3064.6,0.001]
[1763465645856,5.17223889,3064.7,3064.6,0.001]
[1763465646056,4.99723346,3064.7,3064.6,0.001]
[1763465646430,4.69213889,3064.7,3064.6,0.001]
[1763465646630,4.99721007,3064.7,3064.6,0.001]
[1763465646830,5.46021007,3064.7,3064.6,0.001]
[1763465647857,4.71941007,3064.7,3064.6,0.001]
[1763465648032,4.71941007,3064.7,3064.6,0.4601]
[1763465648358,4.71941007,3064.7,3064.6,0.9544]
[1763465648730,2.32241007,3064.7,3064.6,0.4601]
[1763465648932,3.65941007,3064.7,3064.6,0.4601]
[1763465650052,4.14101007,3064.7,3064.6,0.001]
[1763465650257,2.80401007,3064.7,3064.6,0.001]
[1763465650451,3.08101007,3064.7,3064.6,0.001]
[1763465651539,3.37541007,3064.7,3064.6,0.001]
[1763465652238,3.08101007,3064.7,3064.6,0.001]
[1763465652450,3.37541007,3064.7,3064.6,0.001]
[1763465653372,2.59941007,3064.7,3064.6,0.9544]
[1763465653535,1.00991343,3064.7,3064.6,0.9544]
[1763465653734,0.58407118,3064.7,3064.6,0.9544]
[1763465654130,0.279,3064.7,3064.6,0.9544]
[1763465654357,0.58407118,3064.7,3064.6,0.9544]
[1763465654556,0.58407118,3064.7,3064.6,0.4601]
[1763465654747,0.58407118,3064.7,3064.6,0.9544]
[1763465655158,0.58327118,3064.7,3064.6,0.9544]
[1763465658071,2.70327118,3064.7,3064.6,0.9544]
[1763465663094,0.0012,3064.7,3064.6,0.9544]
[1763465663300,1.3382,3064.7,3064.6,0.9544]
[1763465663790,0.0012,3064.7,3064.6,0.9544]
[1763465664289,1.06,3064.7,3064.6,0.9544]
[1763465664495,0.002,3065.1,3064.6,0.98703068]
[1763465664698,0.002,3065.7,3065.0,0.4795]
[1763465664991,1.06,3065.6,3065.3,0.1874]
[1763465665207,0.002,3065.8,3065.4,0.51232217]
[1763465665361,0.002,3066.1,3065.7,0.4795]
[1763465665560,0.30673324,3066.7,3066.0,0.4795]
[1763465665762,0.277,3066.6,3066.1,0.6671]
[1763465665990,0.58173324,3066.6,3066.1,0.6671]
[1763465666191,2.12,3066.5,3066.2,0.4797]
[1763465666492,0.30434087,3066.4,3066.1,0.6671]
[1763465666886,0.70984487,3066.4,3066.3,0.4795]
[1763465668169,1.465504,3066.4,3066.3,0.4795]
[1763465669191,1.465504,3066.4,3066.1,1.31331987]
[1763465669490,1.465504,3066.4,3066.3,0.4795]
[1763465669672,1.465504,3066.4,3066.3,0.9592]
[1763465669875,1.465504,3066.4,3066.3,0.4795]
[1763465670068,0.405504,3066.3,3065.3,0.1874]
[1763465670270,0.277,3066.2,3065.7,0.4797]
[1763465670481,0.682504,3066.2,3066.1,0.6808]
[1763465670996,0.405504,3066.1,3065.4,0.4907]
[1763465671188,6.35074207,3066.0,3065.4,0.4907]
[1763465671697,6.35074207,3066.0,3065.3,0.85075133]
[1763465671860,0.277,3065.9,3065.5,0.4907]
[1763465672259,0.277,3065.9,3065.8,0.4811]
[1763465673405,0.6312,3065.9,3065.3,1.34145133]
[1763465674101,0.6312,3065.9,3065.4,0.4907]
[1763465674494,0.6312,3065.9,3065.3,0.85075133]
[1763465674495,0.405504,3065.8,3065.3,0.85075133]
[1763465675000,6.35074207,3065.7,3065.3,0.85075133]
[1763465675206,6.35074207,3065.7,3065.3,1.34145133]
[1763465675892,6.35074207,3065.7,3065.3,0.85075133]
[1763465676212,0.405504,3065.6,3065.4,0.4752]
[1763465676376,0.277,3065.9,3065.4,0.4752]
[1763465676377,0.405504,3065.9,3065.7,0.4711]
[1763465676705,0.277,3065.8,3065.7,0.4711]
[1763465677104,0.277,3065.8,3065.3,0.66335133]
[1763465677105,0.405504,3065.7,3065.3,0.66335133]
[1763465677305,0.405504,3065.7,3065.1,0.1886]
[1763465677306,6.75624607,3065.7,3065.1,0.1886]
[1763465678205,0.405504,3065.5,3065.1,0.1886]
[1763465678371,0.277,3065.4,3065.1,0.1886]
[1763465678572,6.65391418,3065.4,3065.1,0.6551848]
[1763465678791,6.65391418,3065.4,3064.8,0.4752]
[1763465678792,0.30397211,3065.3,3064.8,0.4752]
[1763465679007,6.75624607,3065.1,3064.6,0.001]
[1763465679372,6.75624607,3065.1,3064.6,0.4762]
[1763465679808,0.277,3065.0,3064.6,1.1431875]
[1763465680100,0.277,3065.0,3064.6,0.4762]
[1763465680302,8.19163871,3064.7,3064.6,0.001]
[1763465680503,10.016421,3064.7,3064.6,0.001]
[1763465680706,10.486121,3064.7,3064.6,0.001]
[1763465681179,9.78473739,3064.7,3064.6,0.001]
[1763465681379,10.48594089,3064.7,3064.6,0.001]
[1763465682311,9.78473739,3064.7,3064.6,0.001]
[1763465682609,9.59203739,3064.7,3064.6,0.001]
[1763465682775,3.24129532,3064.7,3064.6,0.001]
[1763465682975,2.89183145,3064.7,3064.6,0.001]
[1763465683382,1.61673145,3064.7,3064.6,0.4721]
[1763465683604,0.4697,3064.9,3064.6,0.4721]
[1763465683605,0.45163819,3065.6,3064.6,0.9473]
[1763465683798,1.34752398,3065.7,3064.8,0.4711]
[1763465683799,0.58131107,3065.5,3064.8,0.4711]
[1763465683996,0.30431107,3065.4,3064.8,0.4711]
[1763465684202,0.30431107,3065.3,3064.8,0.4711]
[1763465684397,1.17317906,3065.5,3064.9,0.4752]
[1763465684599,0.30432256,3065.4,3064.9,0.4752]
[1763465684800,0.277,3065.3,3064.9,0.4752]
[1763465685719,0.58132256,3065.3,3064.9,0.4752]
[1763465685932,0.30432256,3065.2,3064.9,0.4752]